bitfinex/quotes_SOLUSD_20241205
["timestamp","ask_amount","ask_price","bid_price","bid_amount"]
[1733381210369,7.8479,233.82,233.71,13.32401452]
[1733381210546,7.8479,233.82,233.73,0.12549]
[1733381213270,7.8479,233.82,233.7,23.776884]
[1733381214467,7.8479,233.82,233.71,0.12549]
[1733381221476,7.8479,233.82,233.71,13.32401452]
[1733381221676,7.8479,233.82,233.73,0.12549]
[1733381222380,7.7861,233.88,233.76,37.10089852]
[1733381223666,7.7861,233.88,233.76,23.902374]
[1733381224259,1.06631069,233.87,233.76,23.902374]
[1733381224657,20.0,233.85,233.76,23.776884]
[1733381225483,1.06651001,233.84,233.7,13.19852452]
[1733381225664,20.0,233.85,233.7,13.19852452]
[1733381225973,20.0,233.85,233.71,0.12549]
[1733381226364,20.0,233.85,233.73,0.12549]
[1733381226760,20.0,233.85,233.73,23.902374]
[1733381226963,7.7861,233.88,233.75,23.902374]
[1733381227153,7.7861,233.88,233.77,23.902374]
[1733381228381,7.7054,233.94,233.81,23.902374]
[1733381230179,1.06607081,233.93,233.79,23.776884]
[1733381230380,7.7054,233.94,233.79,23.776884]
[1733381230575,7.7054,233.94,233.8,13.32401452]
[1733381230789,7.7054,233.94,233.81,23.776884]
[1733381232069,1.06615321,233.93,233.79,23.902374]
[1733381232760,1.06615321,233.93,233.79,0.12549]
[1733381234085,20.0,233.91,233.78,23.776884]
[1733381234383,1.06633806,233.9,233.78,0.12549]
[1733381234591,20.0,233.91,233.78,0.12549]
[1733381235872,20.0,233.91,233.8,0.12549]
[1733381238462,1.06616668,233.9,233.8,0.12549]
[1733381238796,20.0,233.91,233.8,0.12549]
[1733381242969,20.0,233.91,233.76,36.39852452]
[1733381243282,1.6261,233.89,233.76,23.2]
[1733381243801,1.6261,233.89,233.77,0.12549]
[1733381244704,1.6261,233.89,233.77,23.902374]
[1733381245299,6.3771,233.88,233.77,23.776884]
[1733381245493,7.44339856,233.88,233.77,23.776884]
[1733381247702,7.44339856,233.88,233.76,23.902374]
[1733381247890,7.44339856,233.88,233.76,0.12549]
[1733381248276,7.44339856,233.88,233.75,0.12549]
[1733381248970,6.3771,233.88,233.75,13.32401452]
[1733381249179,6.3771,233.88,233.77,0.12549]
[1733381249584,1.06638441,233.87,233.77,0.12549]
[1733381249779,6.3771,233.88,233.77,0.12549]
[1733381250694,6.3771,233.88,233.8,0.12549]
[1733381250997,6.3771,233.88,233.8,23.902374]
[1733381252072,7.6139,234.0,233.87,23.776884]
[1733381252271,7.6139,234.0,233.89,23.776884]
[1733381253380,1.06577204,233.99,233.87,23.776884]
[1733381253578,20.0,233.97,233.87,23.776884]
[1733381253798,20.0,233.97,233.85,23.776884]
[1733381254110,1.06592527,233.96,233.85,23.776884]
[1733381255298,1.06592527,233.96,233.82,13.19852452]
[1733381255495,20.0,233.92,233.79,20.0]
[1733381255807,1.06627907,233.91,233.79,20.0]
[1733381256389,30.0,233.89,233.79,20.0]
[1733381256903,30.0,233.89,233.8,23.776884]
[1733381257279,30.0,233.89,233.79,23.776884]
[1733381258987,30.0,233.89,233.81,23.776884]
[1733381260094,30.0,233.89,233.82,13.19852452]
[1733381260296,30.0,233.89,233.83,23.776884]
[1733381262205,7.7586,233.95,233.83,23.776884]
[1733381262811,1.06608016,233.94,233.83,23.776884]
[1733381263019,1.06608016,233.94,233.78,13.19852452]
[1733381263204,30.0,233.88,233.78,13.19852452]
[1733381264213,30.0,233.88,233.79,23.776884]
[1733381266818,30.0,233.88,233.83,13.19852452]
[1733381267027,30.0,233.88,233.84,23.776884]
[1733381268024,7.7586,233.95,233.84,23.776884]
[1733381268733,7.7586,233.95,233.86,23.776884]
[1733381269218,7.7586,233.95,233.88,23.776884]
[1733381271499,1.5293,233.95,233.88,23.776884]
[1733381271723,8.0695,234.0,233.89,13.19852452]
[1733381272016,8.0695,234.0,233.9,23.776884]
[1733381274405,1.06570681,233.99,233.9,23.776884]
[1733381274611,1.06570681,233.99,233.86,13.19852452]
[1733381276110,1.06570681,233.99,233.87,23.776884]
[1733381278107,1.06570681,233.99,233.84,13.19852452]
[1733381278428,1.06570681,233.99,233.85,20.0]
[1733381278807,20.0,233.97,233.82,13.19852452]
[1733381279002,1.06610862,233.96,233.79,13.19852452]
[1733381279219,20.0,233.92,233.77,13.19852452]
[1733381279408,1.06635599,233.91,233.77,13.19852452]
[1733381280029,13.01460901,233.91,233.77,13.19852452]
[1733381280214,1.06635599,233.91,233.77,13.19852452]
[1733381280731,1.06635599,233.91,233.78,23.776884]
[1733381280928,1.06635599,233.91,233.78,36.97540852]
[1733381283933,1.06635599,233.91,233.79,13.19852452]
[1733381284322,1.06635599,233.91,233.78,23.776884]
[1733381287438,1.06635599,233.91,233.8,8.43021996]
[1733381287739,1.06635599,233.91,233.81,23.776884]
[1733381288113,1.06635599,233.91,233.79,8.43021996]
[1733381288321,1.06635599,233.91,233.8,8.43021996]
[1733381288635,1.06635599,233.91,233.78,23.776884]
[1733381288636,1.06635599,233.91,233.79,8.43021996]
[1733381288818,1.06635599,233.91,233.8,23.776884]
[1733381290044,7.85,233.95,233.8,23.776884]
[1733381290228,1.06609887,233.94,233.85,23.776884]
[1733381290435,7.85,233.95,233.85,23.776884]
[1733381292671,7.85,233.95,233.86,8.43021996]
[1733381292845,7.85,233.95,233.87,23.776884]
[1733381294440,7.85,233.95,233.86,23.776884]
[1733381294820,7.85,233.95,233.85,23.776884]
[1733381299230,1.06606206,233.94,233.85,23.776884]
[1733381301348,1.06606206,233.94,233.84,23.776884]
[1733381302452,1.06612123,233.94,233.84,23.776884]
[1733381305635,1.06612123,233.94,233.76,33.8943]
[1733381305840,1.06612123,233.94,233.8,23.776884]
[1733381307860,1.06612123,233.94,233.73,3.28581668]
[1733381308158,20.0,233.92,233.75,28.43021996]
[1733381308350,1.0664016,233.91,233.79,20.0]
[1733381309143,1.0664016,233.91,233.8,23.776884]
[1733381309341,8.1672,233.9,233.8,23.776884]
[1733381309547,1.06640132,233.89,233.8,23.776884]
[1733381310550,1.06640132,233.89,233.76,20.0]
[1733381311332,1.06640132,233.89,233.74,8.43021996]
[1733381312155,1.06640132,233.89,233.76,8.43021996]
[1733381312659,1.06638657,233.89,233.77,23.776884]
[1733381315259,1.06638657,233.89,233.82,8.43021996]
[1733381315432,8.1672,233.9,233.82,8.43021996]
[1733381315638,8.1672,233.9,233.83,23.776884]
[1733381316034,8.1672,233.9,233.82,23.776884]
[1733381317460,8.1672,233.9,233.83,8.43021996]
[1733381317757,8.1672,233.9,233.84,23.776884]
[1733381318641,8.1672,233.9,233.81,20.0]
[1733381318967,8.1672,233.9,233.82,20.0]
[1733381319844,8.1672,233.9,233.82,23.776884]
[1733381320059,8.1672,233.9,233.84,23.776884]
[1733381321559,8.1672,233.9,233.82,23.776884]
[1733381323650,20.0,233.96,233.84,23.776884]
[1733381325064,8.2047,233.99,233.89,23.776884]
[1733381326759,8.2047,233.99,233.9,8.43021996]
[1733381327240,8.2047,233.99,233.91,23.776884]
[1733381328441,1.5805,233.99,233.93,23.776884]
[1733381329041,6.37,234.04,233.95,23.776884]
[1733381329770,6.37,234.04,233.93,23.776884]
[1733381330849,6.37,234.04,233.95,23.776884]
[1733381331568,0.4964135,234.08,234.06,20.12549]
[1733381331870,1.509,234.22,234.1,0.12549]
[1733381332369,1.509,234.22,234.09,23.776884]
[1733381332742,1.509,234.22,234.12,23.776884]
[1733381333865,15.0,234.16,234.12,23.776884]
[1733381334073,15.0,234.16,234.12,36.90965371]
[1733381336859,15.0,234.16,234.06,20.0]
[1733381337043,15.0,234.16,234.1,20.0]
[1733381337751,15.0,234.16,234.11,20.0]
[1733381337953,15.0,234.16,234.08,13.13276971]
[1733381338164,15.0,234.16,234.09,23.776884]
[1733381338679,1.0650958,234.15,234.05,13.13276971]
[1733381338976,15.0,234.16,234.08,13.13276971]
[1733381340175,15.0,234.16,234.09,23.776884]
[1733381342469,15.0,234.16,234.1,13.13276971]
[1733381342778,15.0,234.16,234.13,23.776884]
[1733381343158,15.0,234.16,234.11,23.776884]
[1733381344175,15.0,234.16,234.13,23.776884]
[1733381345064,15.0,234.16,234.15,23.776884]
[1733381345457,15.0,234.16,234.15,23.902374]
[1733381345767,7.5,234.16,234.13,23.776884]
[1733381346573,7.5,234.16,234.15,60.36063371]
[1733381346782,0.4964135,234.31,234.22,13.13276971]
[1733381347280,0.4964135,234.31,234.23,23.776884]
[1733381348655,0.4964135,234.31,234.19,23.776884]
[1733381350669,0.4964135,234.31,234.15,13.13276971]
[1733381350864,1.06464163,234.3,234.12,0.12549]
[1733381351186,1.06464163,234.3,234.15,13.13276971]
[1733381351553,6.3072,234.29,234.14,13.13276971]
[1733381351758,1.06474489,234.28,234.14,13.13276971]
[1733381351958,1.06474489,234.28,234.13,13.13276971]
[1733381352481,1.06474489,234.28,234.14,13.13276971]
[1733381352883,1.06474489,234.28,234.15,13.13276971]
[1733381353266,1.06474489,234.28,234.16,23.776884]
[1733381353785,1.06474489,234.28,234.15,13.13276971]
[1733381355680,1.06474489,234.28,234.16,23.776884]
[1733381355992,1.06474489,234.28,234.15,13.13276971]
[1733381356169,1.06474489,234.28,234.16,23.776884]
[1733381357185,1.06474489,234.28,234.17,13.13276971]
[1733381359185,1.06474489,234.28,234.15,13.13276971]
[1733381359380,1.6193,234.27,234.15,13.13276971]
[1733381359584,1.06478852,234.26,234.15,13.13276971]
[1733381361381,1.06478852,234.26,234.14,13.13276971]
[1733381361698,1.06478852,234.26,234.13,36.90965371]
[1733381362283,1.06478852,234.26,234.14,13.13276971]
[1733381363177,1.06478852,234.26,234.12,13.13276971]
[1733381365300,1.06478852,234.26,234.13,13.13276971]
[1733381366073,1.06478852,234.26,234.13,8.40512047]
[1733381367798,1.06478852,234.26,234.16,8.40512047]
[1733381368004,1.06478852,234.26,234.15,8.40512047]
[1733381368208,1.06478852,234.26,234.12,20.0]
[1733381368376,1.06478852,234.26,234.14,8.40512047]
[1733381369002,1.06478852,234.26,234.15,8.40512047]
[1733381372205,1.6193,234.27,234.17,8.40512047]
[1733381373495,1.6193,234.27,234.19,8.40512047]
[1733381375593,1.6193,234.27,234.18,8.40512047]
[1733381375794,1.6193,234.27,234.21,8.40512047]
[1733381376001,1.6193,234.27,234.2,8.40512047]
[1733381376401,6.3072,234.29,234.2,8.40512047]
[1733381379413,1.06437381,234.28,234.18,20.0]
[1733381379919,1.06437381,234.28,234.18,28.40512047]
[1733381380216,1.06437381,234.28,234.14,20.0]
[1733381380417,1.06437381,234.28,234.15,8.40512047]
[1733381384294,1.06437381,234.28,234.09,24.94335204]
[1733381384613,1.06437381,234.28,234.15,8.40512047]
[1733381385932,1.06437381,234.28,234.16,8.40512047]
[1733381388106,1.06437381,234.28,234.1,23.776884]
[1733381388415,1.06437381,234.28,234.09,23.902374]
[1733381388734,1.06437381,234.28,234.12,8.40512047]
[1733381392123,1.06437381,234.28,234.08,1.75730431]
[1733381392321,20.0,234.26,234.1,8.40512047]
[1733381392507,1.06490385,234.25,234.1,8.40512047]
[1733381393209,6.5752,234.24,234.03,10.682]
[1733381393421,1.06494853,234.23,234.08,8.40512047]
[1733381393617,1.06494853,234.23,234.09,8.40512047]
[1733381394302,1.06494853,234.23,234.1,8.40512047]
[1733381394919,6.5752,234.24,234.13,8.40512047]
[1733381395725,1.06474687,234.23,234.13,8.40512047]
[1733381397333,6.5752,234.24,234.13,8.40512047]
[1733381397629,6.5752,234.24,234.14,8.40512047]
[1733381398698,7.0828135,234.31,234.16,8.40512047]
[1733381398905,7.0828135,234.31,234.18,8.40512047]
[1733381399113,1.06444639,234.3,234.18,8.40512047]
[1733381400604,1.06444639,234.3,234.17,8.40512047]
[1733381400805,0.4964135,234.31,234.28,8.40512047]
[1733381402429,0.4964135,234.31,234.3,8.40512047]
[1733381402608,0.4964135,234.31,234.3,23.2]
[1733381403733,0.4964135,234.31,234.26,8.40512047]
[1733381404032,0.4964135,234.31,234.24,8.40512047]
[1733381404904,0.4964135,234.31,234.25,8.40512047]
[1733381405217,0.4964135,234.31,234.22,23.776884]
[1733381405415,0.4964135,234.31,234.24,8.40512047]
[1733381405629,12.05417264,234.51,234.24,8.40512047]
[1733381405630,1.06402849,234.5,234.39,18.9]
[1733381406239,1.06354247,234.5,234.39,18.9]
[1733381406400,1.06353887,234.5,234.39,18.9]
[1733381408435,20.0,234.48,234.3,13.10972012]
[1733381408731,1.06390937,234.47,234.34,13.10972012]
[1733381408932,1.06367926,234.5,234.37,13.10972012]
[1733381410139,6.048,234.51,234.4,20.0]
[1733381410340,6.048,234.51,234.42,20.0]
[1733381412423,1.0635106,234.5,234.39,13.10972012]
[1733381412621,6.048,234.51,234.39,13.10972012]
[1733381412926,6.048,234.51,234.4,23.776884]
[1733381413321,6.048,234.51,234.39,13.10972012]
[1733381413520,1.06350013,234.5,234.39,13.10972012]
[1733381413721,6.048,234.51,234.39,13.10972012]
[1733381414225,6.048,234.51,234.4,23.776884]
[1733381415922,1.5545,234.53,234.43,13.10972012]
[1733381416128,1.5545,234.53,234.44,23.776884]
[1733381417746,0.4964135,234.54,234.46,23.776884]
[1733381424059,0.4964135,234.54,234.48,13.10972012]
[1733381424949,0.4964135,234.54,234.46,36.88660412]
[1733381425839,0.4964135,234.54,234.43,23.776884]
[1733381426435,7.5617,234.53,234.4,13.10972012]
[1733381426657,1.06349365,234.52,234.4,13.10972012]
[1733381426840,0.98375651,234.52,234.4,13.34723062]
[1733381427266,0.98375651,234.52,234.41,13.10972012]
[1733381428661,0.98375651,234.52,234.41,23.776884]
[1733381429663,0.98375651,234.52,234.41,36.88660412]
[1733381430037,0.98375651,234.52,234.42,13.34727534]
[1733381430348,7.5617,234.53,234.44,13.10972012]
[1733381431150,0.9836769,234.52,234.42,0.23755522]
[1733381431466,0.9836769,234.52,234.41,23.776884]
[1733381431637,0.9836769,234.52,234.41,37.12419043]
[1733381437077,7.5617,234.53,234.41,37.12419043]
[1733381437078,7.5617,234.53,234.43,13.10972012]
[1733381437365,7.5617,234.53,234.44,0.23729934]
[1733381439470,0.98366768,234.52,234.42,0.23733284]
[1733381439762,0.98366768,234.52,234.37,0.23758161]
[1733381439977,0.98366768,234.52,234.38,8.38287596]
[1733381440274,0.98366768,234.52,234.37,8.62045757]
[1733381440566,0.98366768,234.52,234.4,8.38287596]
[1733381441240,0.98366768,234.52,234.41,0.23766005]
[1733381441445,0.98366768,234.52,234.41,8.62053601]
[1733381442063,0.98366768,234.52,234.41,13.33897006]
[1733381442879,0.98366768,234.52,234.39,23.776884]
[1733381443170,0.98366768,234.52,234.38,13.10131001]
[1733381444273,0.98366768,234.52,234.39,0.23791912]
[1733381445377,0.98366768,234.52,234.38,13.10131001]
[1733381447157,0.98366768,234.52,234.39,24.01478465]
[1733381448170,0.98366768,234.52,234.4,13.10131001]
[1733381451363,0.98366768,234.52,234.39,24.01478465]
[1733381452079,0.4964135,234.54,234.5,13.10131001]
[1733381452259,0.4964135,234.54,234.52,13.10131001]
[1733381452459,0.4964135,234.54,234.53,0.23649151]
[1733381453164,0.4964135,234.54,234.53,24.13886551]
[1733381453369,0.4964135,234.54,234.53,37.11468552]
[1733381453865,0.4964135,234.54,234.53,0.23649151]
[1733381454072,0.4964135,234.54,234.5,24.01299844]
[1733381454458,0.4964135,234.54,234.51,13.10131001]
[1733381454673,0.4964135,234.54,234.52,0.23664464]
[1733381455863,0.4964135,234.54,234.53,13.10131001]
[1733381456064,0.4964135,234.54,234.53,13.33793625]
[1733381456268,0.4964135,234.54,234.53,0.23662624]
[1733381456670,0.4964135,234.54,234.51,13.3379564]
[1733381458361,0.4964135,234.54,234.46,20.0]
[1733381458565,0.4964135,234.54,234.47,0.23688906]
[1733381459091,0.4964135,234.54,234.46,13.10131001]
[1733381461065,0.4964135,234.54,234.44,13.10131001]
[1733381461382,1.6353,234.53,234.42,13.10131001]
[1733381461590,1.6353,234.53,234.41,0.23731697]
[1733381461789,7.43510304,234.52,234.41,0.23731697]
[1733381462088,7.43510304,234.52,234.41,13.33862698]
[1733381462269,7.43510304,234.52,234.32,0.23761609]
[1733381462474,7.43510304,234.52,234.34,13.10131001]
[1733381462673,14.87020604,234.52,234.32,13.3389261]
[1733381463086,7.43510304,234.52,234.35,13.10131001]
[1733381463565,7.43510304,234.52,234.34,13.10131001]
[1733381463766,20.0,234.48,234.32,0.2379629]
[1733381463966,1.06381876,234.47,234.32,13.33927291]
[1733381465085,1.06381876,234.47,234.32,0.2379629]
[1733381465276,1.06381876,234.47,234.32,24.0148469]
[1733381465960,1.06381876,234.47,234.32,13.33927291]
[1733381466170,1.06381876,234.47,234.33,13.10131001]
[1733381466388,1.06381876,234.47,234.33,13.33965863]
[1733381466770,1.06381876,234.47,234.34,13.10131001]
[1733381466960,1.06381876,234.47,234.33,13.10131001]
[1733381467794,1.06381876,234.47,234.34,0.23840811]
[1733381468164,1.06381876,234.47,234.34,24.01529211]
[1733381468788,1.06381876,234.47,234.33,13.10131001]
[1733381468985,1.06381876,234.47,234.32,13.10131001]
[1733381469167,1.06381876,234.47,234.33,0.23832857]
[1733381469880,1.06381876,234.47,234.32,23.776884]
[1733381470067,1.06381876,234.47,234.32,37.11661731]
[1733381470265,1.06381876,234.47,234.29,24.0152838]
[1733381470581,1.06381876,234.47,234.31,13.10131001]
[1733381471382,1.06381876,234.47,234.32,13.10131001]
[1733381471997,1.06381876,234.47,234.32,8.39152731]
[1733381472713,1.06381876,234.47,234.33,8.39152731]
[1733381473007,1.06381876,234.47,234.34,8.62993543]
[1733381473191,1.06381876,234.47,234.36,8.39152731]
[1733381473367,1.06381876,234.47,234.35,8.39152731]
[1733381473571,1.06381876,234.47,234.33,8.39152731]
[1733381474077,1.06381876,234.47,234.34,0.23826069]
[1733381474767,1.06381876,234.47,234.34,8.629788]
[1733381478288,1.06381876,234.47,234.36,8.39152731]
[1733381478494,1.06368266,234.5,234.36,8.39152731]
[1733381478697,1.06368266,234.5,234.35,8.39152731]
[1733381478902,1.06368266,234.5,234.34,32.406672]
[1733381481488,1.06368266,234.5,234.35,8.39152731]
[1733381482675,1.06368266,234.5,234.34,24.01514469]
[1733381483102,20.0,234.48,234.35,8.39152731]
[1733381483298,1.06379901,234.47,234.36,0.23812123]
[1733381486004,1.06379901,234.47,234.37,8.39152731]
[1733381486506,1.06379901,234.47,234.35,0.23812741]
[1733381487987,1.06379901,234.47,234.34,8.39152731]
[1733381488410,1.06379901,234.47,234.33,8.39152731]
[1733381488701,1.06379901,234.47,234.31,28.39152731]
[1733381488882,1.06379901,234.47,234.32,0.23843971]
[1733381489385,1.5816,234.46,234.32,0.23843971]
[1733381489685,1.06396091,234.45,234.32,0.23843971]
[1733381491904,1.06396091,234.45,234.25,0.23843668]
[1733381491905,1.5996,234.43,234.25,0.23843668]
[1733381492205,1.5272,234.41,234.22,8.39152731]
[1733381492411,20.0,234.39,234.21,8.39152731]
[1733381492704,1.12838275,234.38,234.22,0.23928056]
[1733381493300,8.0248,234.37,234.22,0.23928056]
[1733381493504,1.06441444,234.36,234.22,0.23928056]
[1733381493687,1.12841852,234.36,234.22,8.63080787]
[1733381494903,1.12841852,234.36,234.22,0.23928056]
[1733381495689,1.12841852,234.36,234.16,23.43936677]
[1733381496017,1.12841852,234.36,234.18,8.39152731]
[1733381496222,20.0,234.34,234.19,0.23957105]
[1733381496513,1.12852745,234.33,234.19,0.23957105]
[1733381496711,1.6007,234.32,234.19,0.23957105]
[1733381496914,1.0645896,234.31,234.14,0.23967982]
[1733381497122,1.12859368,234.31,234.16,8.39152731]
[1733381497318,1.12859368,234.31,234.17,0.23980829]
[1733381497913,1.12859368,234.31,234.17,8.6313356]
[1733381498613,1.0645896,234.31,234.22,8.39152731]
[1733381498821,1.6007,234.32,234.22,8.39152731]
[1733381499013,1.6007,234.32,234.21,8.39152731]
[1733381499927,1.06448123,234.31,234.18,8.39152731]
[1733381500123,1.39148068,234.31,234.18,8.39152731]
[1733381500325,1.39148068,234.31,234.19,0.23967093]
[1733381501724,1.39148068,234.31,234.2,8.39152731]
[1733381502027,1.39148068,234.31,234.2,8.63110309]
[1733381502858,1.39148068,234.31,234.2,8.39152731]
[1733381505297,1.39148068,234.31,234.17,0.23957508]
[1733381505502,1.39148068,234.31,234.2,8.39152731]
[1733381506023,1.39148068,234.31,234.18,8.39152731]
[1733381506228,1.39148068,234.31,234.19,8.63124832]
[1733381507119,1.39148068,234.31,234.21,8.39152731]
[1733381507423,1.06448123,234.31,234.23,8.39152731]
[1733381507610,1.6007,234.32,234.23,8.39152731]
[1733381508337,1.6007,234.32,234.22,8.39152731]
[1733381508715,1.6007,234.32,234.21,8.39152731]
[1733381511231,1.6163,234.44,234.31,8.39152731]
[1733381511414,1.6163,234.44,234.37,8.39152731]
[1733381513725,1.5436,234.51,234.41,8.39152731]
[1733381514028,1.5436,234.51,234.42,0.23764487]
[1733381514229,2.60713132,234.51,234.42,0.23764487]
[1733381515118,1.5436,234.51,234.42,0.23764487]
[1733381516818,1.5436,234.51,234.38,13.10133284]
[1733381517011,1.0635361,234.5,234.33,0.23759541]
[1733381517630,1.0635361,234.5,234.33,13.33892825]
[1733381518347,6.1587,234.49,234.33,13.33892825]
[1733381518513,1.06383703,234.48,234.33,0.23759541]
[1733381518709,1.06383703,234.48,234.35,20.0]
[1733381519213,1.06383703,234.48,234.29,37.11643555]
[1733381519408,1.5736,234.47,234.29,37.11643555]
[1733381519631,1.06398561,234.46,234.31,13.10133284]
[1733381519930,1.06398561,234.46,234.32,0.23838224]
[1733381520741,21.06398561,234.46,234.3,13.10133284]
[1733381521029,21.06398561,234.46,234.31,0.23848876]
[1733381521240,6.0797,234.45,234.27,13.10133284]
[1733381521543,1.06408908,234.44,234.28,0.23870136]
[1733381522255,1.06408908,234.44,234.28,13.3400342]
[1733381522547,1.06408908,234.44,234.3,13.10133284]
[1733381522754,1.06408908,234.44,234.3,13.33998123]
[1733381523741,1.06408908,234.44,234.3,13.10133284]
[1733381524855,1.06408908,234.44,234.27,0.23864787]
[1733381525144,1.06408908,234.44,234.28,13.10133284]
[1733381525373,1.6662,234.43,234.27,13.33998071]
[1733381525556,1.06416222,234.42,234.27,13.33998071]
[1733381525849,1.06416222,234.42,234.27,0.23864787]
[1733381526554,1.06416222,234.42,234.27,13.33998071]
[1733381527731,21.06416222,234.42,234.27,0.23864787]
[1733381528554,21.06416222,234.42,234.27,13.33998071]
[1733381529238,21.06416222,234.42,234.27,0.23864787]
[1733381529442,21.06416222,234.42,234.27,13.10133284]
[1733381529646,21.06416222,234.42,234.29,13.10133284]
[1733381529938,21.06416222,234.42,234.3,13.10133284]
[1733381530656,1.06416222,234.42,234.32,13.10133284]
[1733381530837,1.06416222,234.42,234.33,13.10133284]
[1733381532758,1.06416222,234.42,234.31,13.10133284]
[1733381533957,1.06416222,234.42,234.32,8.63004988]
[1733381534861,1.06416222,234.42,234.32,8.39159167]
[1733381535352,0.4964135,234.54,234.41,32.16847567]
[1733381535531,0.4964135,234.54,234.48,8.39159167]
[1733381535865,0.4964135,234.54,234.49,0.23699765]
[1733381536440,0.4964135,234.54,234.48,8.39159167]
[1733381537137,0.4964135,234.54,234.49,0.23698291]
[1733381538161,0.4964135,234.54,234.48,13.09299265]
[1733381538464,0.4964135,234.54,234.49,0.23687543]
[1733381539970,0.4964135,234.54,234.5,13.09299265]
[1733381542978,0.4964135,234.54,234.47,13.09299265]
[1733381543841,0.4964135,234.54,234.48,0.23704175]
[1733381544463,0.4964135,234.54,234.49,13.09299265]
[1733381544865,0.4964135,234.54,234.51,13.09299265]
[1733381545171,0.4964135,234.54,234.53,36.86987665]
[1733381548443,0.4964135,234.54,234.53,36.99536665]
[1733381549560,0.4964135,234.54,234.53,60.19536665]
[1733381549755,0.4964135,234.54,234.53,60.32085665]
[1733381553751,0.4964135,234.54,234.53,60.06987665]
[1733381555468,0.4964135,234.54,234.53,24.01303928]
[1733381555669,0.4964135,234.54,234.53,37.10603193]
[1733381560091,0.4964135,234.54,234.53,32.38758988]
[1733381561152,0.4964135,234.54,234.53,0.23615528]
[1733381561361,0.4964135,234.54,234.52,0.23646999]
[1733381561570,0.4964135,234.54,234.48,0.236463]
[1733381561779,0.4964135,234.54,234.51,8.3745506]
[1733381561986,0.4964135,234.54,234.51,13.09195927]
[1733381563361,0.4964135,234.54,234.5,13.09195927]
[1733381564086,0.4964135,234.54,234.49,13.09195927]
[1733381565665,0.4964135,234.54,234.51,13.09195927]
[1733381565966,0.4964135,234.54,234.5,13.32886482]
[1733381567400,0.4964135,234.54,234.49,13.09195927]
[1733381568468,0.4964135,234.54,234.45,13.32885076]
[1733381568687,0.4964135,234.54,234.42,13.09195927]
[1733381568901,7.871,234.53,234.38,13.09195927]
[1733381569194,1.06346389,234.52,234.37,13.32942586]
[1733381570289,1.06346389,234.52,234.37,0.23746659]
[1733381570474,1.06346389,234.52,234.36,0.23796397]
[1733381570672,1.06346389,234.52,234.36,24.01484797]
[1733381570988,1.6511,234.49,234.36,0.23796397]
[1733381571287,1.06381221,234.48,234.34,0.23813537]
[1733381572060,1.06381221,234.48,234.34,23.776884]
[1733381572263,1.06381221,234.48,234.34,24.01507233]
[1733381572791,1.06381221,234.48,234.34,0.23818833]
[1733381573292,1.06381221,234.48,234.26,29.4885]
[1733381573293,20.0,234.44,234.27,0.23827665]
[1733381573491,1.0640967,234.43,234.27,0.23827665]
[1733381573696,7.8551,234.42,234.27,0.23827665]
[1733381573900,1.06412507,234.41,234.28,13.09195927]
[1733381574063,1.06412507,234.41,234.27,13.09195927]
[1733381574266,1.06412507,234.41,234.3,13.09195927]
[1733381574671,1.06412507,234.41,234.29,13.09195927]
[1733381574866,1.0640212,234.41,234.29,13.09195927]
[1733381575063,7.8551,234.42,234.31,13.09195927]
[1733381575266,7.8551,234.42,234.32,0.23849215]
[1733381575673,1.06399155,234.41,234.32,0.23849215]
[1733381576094,7.8551,234.42,234.34,13.09195927]
[1733381576272,7.8551,234.42,234.35,0.23808713]
[1733381576590,7.8551,234.42,234.32,13.09195927]
[1733381576784,7.8551,234.42,234.31,13.09195927]
[1733381576986,7.8551,234.42,234.32,0.23842556]
[1733381579295,7.8551,234.42,234.32,13.33038483]
[1733381579482,7.8551,234.42,234.32,0.23842556]
[1733381579682,7.8551,234.42,234.33,0.23832941]
[1733381580700,0.4964135,234.54,234.41,23.776884]
[1733381580880,2.0037135,234.54,234.42,0.23707064]
[1733381581072,2.0037135,234.54,234.46,13.09195927]
[1733381581283,2.0037135,234.54,234.48,13.09195927]
[1733381583176,2.0037135,234.54,234.49,0.23695792]
[1733381584289,2.0037135,234.54,234.48,13.09195927]
[1733381584500,0.4964135,234.54,234.5,13.09195927]
[1733381584705,0.4964135,234.54,234.41,34.441884]
[1733381584706,0.4964135,234.54,234.53,23.776884]
[1733381585005,0.4964135,234.54,234.53,24.01333457]
[1733381587587,0.4964135,234.54,234.53,0.23645057]
[1733381588104,0.4964135,234.54,234.5,13.09195927]
[1733381588281,0.4964135,234.54,234.51,0.23666206]